fUSD/lending_fUSD_20240712
["ID","MTS","AMOUNT","RATE_DAILY","PERIOD"]
[331786453,1720763448522,-1075.38,0.00013779,2]
[331786454,1720763448532,-500.0,0.00013779,2]
[331786455,1720763448542,-513.85,0.00013779,2]
[331786456,1720763448552,-677.43,0.00013779,2]
[331786457,1720763448562,-500.0,0.00013779,2]
[331786458,1720763448572,-922.36,0.00013779,2]
[331786459,1720763448582,-500.0,0.00013779,2]
[331786460,1720763448592,-500.0,0.00013779,2]
[331786461,1720763448601,-500.0,0.00013779,2]
[331786462,1720763448611,-500.0,0.00013779,2]
[331786463,1720763448620,-500.0,0.00013779,2]
[331786464,1720763448630,-500.0,0.00013779,2]
[331786465,1720763448639,-1067.35,0.00013779,2]
[331786466,1720763448649,-500.0,0.00013779,2]
[331786467,1720763448658,-500.0,0.00013779,2]
[331786468,1720763448668,-500.0,0.00013779,2]
[331786469,1720763448678,-500.0,0.00013779,2]
[331786470,1720763448687,-500.0,0.00013779,2]
[331786471,1720763448697,-500.0,0.00013779,2]
[331786472,1720763448707,-500.0,0.00013779,2]
[331786473,1720763448716,-888.2,0.00013779,2]
[331786474,1720763448726,-1018.08,0.00013779,2]
[331786475,1720763448738,-500.0,0.00013779,2]
[331786476,1720763448747,-500.0,0.00013779,2]
[331786477,1720763448757,-500.0,0.00013779,2]
[331786478,1720763448767,-500.0,0.00013779,2]
[331786479,1720763448776,-500.0,0.00013779,2]
[331786480,1720763448787,-500.0,0.00013779,2]
[331786481,1720763448797,-500.0,0.00013779,2]
[331786482,1720763448807,-500.0,0.00013779,2]
[331786483,1720763448819,-500.0,0.00013779,2]
[331786484,1720763448829,-621.5,0.00013779,2]
[331786485,1720763448839,-527.45,0.00013779,2]
[331786486,1720763448849,-775.19,0.00013779,2]
[331786487,1720763448859,-587.6,0.00013779,2]
[331786488,1720763448869,-606.2,0.00013779,2]
[331786489,1720763448879,-500.0,0.00013779,2]
[331786490,1720763448889,-687.54,0.00013779,2]
[331786491,1720763448899,-500.0,0.00013779,2]
[331786492,1720763448910,-500.0,0.00013779,2]
[331786493,1720763448920,-531.24,0.00013779,2]
[331786494,1720763448930,-500.0,0.00013779,2]
[331786495,1720763448943,-500.0,0.00013779,2]
[331786496,1720763448953,-529.67,0.00013779,2]
[331786497,1720763448963,-500.0,0.00013779,2]
[331786498,1720763448974,-588.19,0.00013779,2]
[331786499,1720763448984,-500.0,0.00013779,2]
[331786500,1720763448994,-500.0,0.00013779,2]
[331786501,1720763449004,-500.0,0.00013779,2]
[331786502,1720763449014,-783.48,0.00013779,2]
[331786503,1720763449024,-500.0,0.00013779,2]
[331786504,1720763449034,-500.0,0.00013779,2]
[331786505,1720763449044,-500.0,0.00013779,2]
[331786506,1720763449054,-500.0,0.00013779,2]
[331786507,1720763449064,-1127.76,0.00013779,2]
[331786508,1720763449076,-500.0,0.00013779,2]
[331786509,1720763449087,-831.64,0.00013779,2]
[331786510,1720763449097,-500.0,0.00013779,2]
[331786511,1720763449107,-500.0,0.00013779,2]
[331786512,1720763449118,-500.0,0.00013779,2]
[331786513,1720763449128,-511.9,0.00013779,2]
[331786514,1720763449138,-624.49,0.00013779,2]
[331786515,1720763449148,-891.7,0.00013779,2]
[331786516,1720763449158,-500.0,0.00013779,2]
[331786517,1720763449168,-500.0,0.00013779,2]
[331786518,1720763449179,-500.0,0.00013779,2]
[331786519,1720763449190,-500.0,0.00013779,2]
[331786520,1720763449200,-500.0,0.00013779,2]
[331786521,1720763449211,-500.0,0.00013779,2]
[331786522,1720763449221,-658.22,0.00013779,2]
[331786523,1720763449231,-500.0,0.00013779,2]
[331786524,1720763449241,-503.14224535,0.00013779,2]
[331786525,1720763449251,-500.0,0.00013779,2]
[331786526,1720763449261,-500.0,0.00013779,2]
[331786527,1720763449272,-500.0,0.00013779,2]
[331786528,1720763449282,-500.0,0.00013779,2]
[331786529,1720763449292,-938.15,0.00013779,2]
[331786530,1720763449302,-500.0,0.00013779,2]
[331786531,1720763449312,-559.3,0.00013779,2]
[331786532,1720763449323,-500.0,0.00013779,2]
[331786533,1720763449333,-500.0,0.00013779,2]
[331786534,1720763449343,-1238.9,0.00013779,2]
[331786535,1720763449353,-500.0,0.00013779,2]
[331786536,1720763449364,-500.0,0.00013779,2]
[331786537,1720763449374,-500.0,0.00013779,2]
[331786538,1720763449383,-500.0,0.00013779,2]
[331786539,1720763449394,-500.0,0.00013779,2]
[331786540,1720763449404,-1054.17,0.00013779,2]
[331786541,1720763449414,-500.0,0.00013779,2]
[331786542,1720763449424,-500.0,0.00013779,2]
[331786543,1720763449435,-341.07412668,0.00013779,2]
[331786544,1720763449446,-500.0,0.00013779,2]
[331786545,1720763449456,-500.0,0.00013779,2]
[331786546,1720763449466,-500.0,0.00013779,2]
[331786547,1720763449476,-500.0,0.00013779,2]
[331786548,1720763449487,-1094.92,0.00013779,2]
[331786549,1720763449497,-500.0,0.00013779,2]
[331786550,1720763449507,-500.0,0.00013779,2]
[331786551,1720763449517,-1331.75,0.00013779,2]
[331786552,1720763449527,-715.5,0.00013779,2]
[331786553,1720763449537,-748.3,0.00013779,2]
[331786554,1720763449547,-500.0,0.00013779,2]
[331786555,1720763449558,-500.0,0.00013779,2]
[331786556,1720763449568,-500.0,0.00013779,2]
[331786557,1720763449579,-500.0,0.00013779,2]
[331786558,1720763449590,-500.0,0.00013779,2]
[331786559,1720763449600,-500.0,0.00013779,2]
[331786560,1720763449610,-500.0,0.00013779,2]
[331786561,1720763449620,-500.0,0.00013779,2]
[331786562,1720763449631,-500.0,0.00013779,2]
[331786563,1720763449641,-500.0,0.00013779,2]
[331786564,1720763449651,-500.0,0.00013779,2]
[331786565,1720763449661,-1323.41,0.00013779,2]
[331786566,1720763449671,-500.0,0.00013779,2]
[331786567,1720763449681,-564.09,0.00013779,2]
[331786568,1720763449691,-500.0,0.00013779,2]
[331786569,1720763449701,-500.0,0.00013779,2]
[331786570,1720763449712,-895.57,0.00013779,2]
[331786571,1720763449722,-500.0,0.00013779,2]
[331786572,1720763449732,-500.0,0.00013779,2]
[331786573,1720763449747,-500.0,0.00013779,2]
[331786574,1720763449758,-500.0,0.00013779,2]
[331786575,1720763449767,-788.69,0.00013779,2]
[331786576,1720763449779,-500.0,0.00013779,2]
[331786577,1720763449788,-561.5290824,0.00013779,2]
[331786578,1720763449798,-500.0,0.00013779,2]
[331786579,1720763449809,-500.0,0.00013779,2]
[331786580,1720763449822,-583.5,0.00013779,2]
[331786581,1720763449832,-500.0,0.00013779,2]
[331786582,1720763449842,-500.0,0.00013779,2]
[331786583,1720763449852,-863.73,0.00013779,2]
[331786584,1720763449862,-500.0,0.00013779,2]
[331786585,1720763449872,-500.0,0.00013779,2]
[331786586,1720763449882,-500.0,0.00013779,2]
[331786587,1720763449892,-500.0,0.00013779,2]
[331786588,1720763449902,-500.0,0.00013779,2]
[331786589,1720763449912,-500.0,0.00013779,2]
[331786590,1720763449922,-500.0,0.00013779,2]
[331786591,1720763449932,-500.0,0.00013779,2]
[331786592,1720763449943,-500.0,0.00013779,2]
[331786593,1720763449954,-500.0,0.00013779,2]
[331786594,1720763449965,-708.79,0.00013779,2]
[331786595,1720763450232,-500.0,0.00013779,2]
[331786596,1720763450242,-500.0,0.00013779,2]
[331786597,1720763450252,-500.0,0.00013779,2]
[331786598,1720763450261,-500.0,0.00013779,2]
[331786599,1720763450271,-666.78,0.00013779,2]
[331786600,1720763450281,-500.0,0.00013779,2]
[331786601,1720763450290,-500.0,0.00013779,2]
[331786602,1720763450300,-450.44494041,0.00013779,2]
[331786603,1720763450310,-875.18,0.00013779,2]
[331786604,1720763450320,-500.0,0.00013779,2]
[331786605,1720763450331,-500.0,0.00013779,2]
[331786606,1720763450341,-500.0,0.00013779,2]
[331786607,1720763450353,-1053.04,0.00013779,2]
[331786608,1720763450363,-500.0,0.00013779,2]
[331786609,1720763450372,-500.0,0.00013779,2]
[331786610,1720763450382,-500.0,0.00013779,2]
[331786611,1720763450391,-500.0,0.00013779,2]
[331786612,1720763450401,-1036.15,0.00013779,2]
[331786613,1720763450411,-500.0,0.00013779,2]
[331786614,1720763450422,-799.33,0.00013779,2]
[331786615,1720763450432,-500.0,0.00013779,2]
[331786616,1720763450443,-500.0,0.00013779,2]
[331786617,1720763450453,-500.0,0.00013779,2]
[331786618,1720763450464,-1079.16,0.00013779,2]
[331786619,1720763450474,-687.45,0.00013779,2]
[331786620,1720763450483,-500.0,0.00013779,2]
[331786621,1720763450493,-1584.19,0.00013779,2]
[331786622,1720763450503,-500.0,0.00013779,2]
[331786623,1720763450513,-500.0,0.00013779,2]
[331786624,1720763450523,-500.0,0.00013779,2]
[331786625,1720763450532,-500.0,0.00013779,2]
[331786626,1720763450542,-500.0,0.00013779,2]
[331786627,1720763450552,-1366.75,0.00013779,2]
[331786628,1720763450562,-500.0,0.00013779,2]
[331786629,1720763450572,-500.0,0.00013779,2]
[331786630,1720763450582,-500.0,0.00013779,2]
[331786631,1720763450591,-500.0,0.00013779,2]
[331786632,1720763450601,-500.0,0.00013779,2]
[331786633,1720763450610,-678.82,0.00013779,2]
[331786634,1720763450620,-500.0,0.00013779,2]
[331786635,1720763450630,-1427.74,0.00013779,2]
[331786636,1720763450640,-500.0,0.00013779,2]
[331786637,1720763450650,-500.0,0.00013779,2]
[331786638,1720763450659,-500.0,0.00013779,2]
[331786639,1720763450669,-818.09,0.00013779,2]
[331786640,1720763450680,-769.59,0.00013779,2]
[331786641,1720763450690,-500.0,0.00013779,2]
[331786642,1720763450700,-500.0,0.00013779,2]
[331786643,1720763450709,-993.13,0.00013779,2]
[331786644,1720763450719,-500.0,0.00013779,2]
[331786645,1720763450729,-500.0,0.00013779,2]
[331786646,1720763450744,-500.0,0.00013779,2]
[331786647,1720763450753,-500.0,0.00013779,2]
[331786648,1720763450763,-901.68,0.00013779,2]
[331786649,1720763450773,-500.0,0.00013779,2]
[331786650,1720763450784,-500.0,0.00013779,2]
[331786651,1720763450794,-500.0,0.00013779,2]
[331786652,1720763450804,-500.0,0.00013779,2]
[331786653,1720763450814,-500.0,0.00013779,2]
[331786654,1720763450826,-500.0,0.00013779,2]
[331786655,1720763450836,-973.58,0.00013779,2]
[331786656,1720763450846,-500.0,0.00013779,2]
[331786657,1720763450856,-500.0,0.00013779,2]
[331786658,1720763450865,-500.0,0.00013779,2]
[331786659,1720763450874,-500.0,0.00013779,2]
[331786660,1720763450883,-500.0,0.00013779,2]
[331786661,1720763450893,-697.35,0.00013779,2]
[331786662,1720763450903,-1644.61,0.00013779,2]
[331786663,1720763450912,-1152.09,0.00013779,2]
[331786664,1720763450922,-500.0,0.00013779,2]
[331786665,1720763450932,-500.0,0.00013779,2]
[331786666,1720763450942,-500.0,0.00013779,2]
[331786667,1720763450953,-500.0,0.00013779,2]
[331786668,1720763450963,-500.0,0.00013779,2]
[331786669,1720763450972,-500.0,0.00013779,2]
[331786670,1720763450982,-500.0,0.00013779,2]
[331786671,1720763450992,-500.0,0.00013779,2]
[331786672,1720763451001,-572.97,0.00013779,2]
[331786673,1720763451011,-500.0,0.00013779,2]
[331786674,1720763451021,-500.0,0.00013779,2]
[331786675,1720763451030,-500.0,0.00013779,2]
[331786676,1720763451040,-1098.31,0.00013779,2]
[331786677,1720763451049,-500.0,0.00013779,2]
[331786678,1720763451058,-500.0,0.00013779,2]
[331786679,1720763451068,-500.0,0.00013779,2]
[331786680,1720763451083,-500.0,0.00013779,2]
[331786681,1720763451092,-500.0,0.00013779,2]
[331786682,1720763451102,-500.0,0.00013779,2]
[331786683,1720763451112,-500.0,0.00013779,2]
[331786684,1720763451121,-500.0,0.00013779,2]
[331786685,1720763451130,-500.0,0.00013779,2]
[331786686,1720763451140,-500.0,0.00013779,2]
[331786687,1720763451150,-500.0,0.00013779,2]
[331786688,1720763451160,-500.0,0.0001378,2]
[331786689,1720763451170,-191.14208545,0.0001378,2]
[331786690,1720763451180,-500.0,0.0001378,2]
[331786691,1720763451189,-500.0,0.0001378,2]
[331786692,1720763451198,-500.0,0.0001378,2]
[331786693,1720763451208,-500.0,0.0001378,2]
[331786694,1720763451217,-500.0,0.0001378,2]
[331786695,1720763451227,-500.0,0.0001378,2]
[331786696,1720763451237,-500.0,0.0001378,2]
[331786697,1720763451246,-200.0,0.0001378,2]
[331786698,1720763451256,-500.0,0.0001378,2]
[331786699,1720763451266,-500.0,0.0001378,2]
[331786700,1720763451275,-500.0,0.0001378,2]
[331786701,1720763451285,-500.0,0.0001378,2]
[331786702,1720763451295,-500.0,0.0001378,2]
[331786703,1720763451304,-500.0,0.0001378,2]
[331786704,1720763451314,-340.69332934,0.0001378,2]
[331786705,1720763451364,-159.30667066,0.0001378,2]
[331786706,1720763451374,-368.08889157,0.0001378,2]
[331786707,1720763451385,-131.91110843,0.0001378,2]
[331786708,1720763451395,-161.60889157,0.0001378,2]
[331786709,1720763451500,-18.78386929,0.0001378,2]
[331786710,1720763451510,-500.0,0.0001378,2]
[331786711,1720763451520,-196.30626119,0.0001378,2]
[331786712,1720763451530,-500.0,0.0001378,2]
[331786713,1720763451539,-14.47964696,0.0001378,2]
[331786714,1720763451550,-485.52035304,0.0001378,2]
[331786715,1720763451560,-500.0,0.0001378,2]
[331786716,1720763451570,-500.0,0.0001378,2]
[331786717,1720763451581,-500.0,0.0001378,2]
[331786718,1720763451591,-330.74389678,0.0001378,2]
[331786719,1720763453287,-500.0,0.00013698,2]
[331786720,1720763453297,-500.0,0.00013698,2]
[331786721,1720763453306,-113.8701207,0.00013698,2]
[331786722,1720763453318,-386.1298793,0.00013698,2]
[331786723,1720763453329,-500.0,0.00013698,2]
[331786724,1720763453339,-500.0,0.00013698,2]
[331786725,1720763453348,-500.0,0.00013753,2]
[331786726,1720763453358,-500.0,0.00013753,2]
[331786727,1720763453367,-500.0,0.00013753,2]
[331786728,1720763453377,-376.25344386,0.00013753,2]
[331786729,1720763453388,-123.74655614,0.00013753,2]
[331786730,1720763453397,-175.1847932,0.0001378,2]
[331786731,1720763453498,-16.50194588,0.0001378,2]
[331786732,1720763453507,-500.0,0.0001378,2]
[331786733,1720763453517,-500.0,0.0001378,2]
[331786734,1720763453527,-500.0,0.0001378,2]
[331786735,1720763453536,-500.0,0.0001378,2]
[331786736,1720763453546,-500.0,0.0001378,2]
[331786737,1720763453555,-500.0,0.0001378,2]
[331786738,1720763453564,-500.0,0.0001378,2]
[331786739,1720763453575,-500.0,0.0001378,2]
[331786740,1720763453585,-500.0,0.0001378,2]
[331786741,1720763453595,-500.0,0.0001378,2]
[331786742,1720763453604,-500.0,0.0001378,2]
[331786743,1720763453614,-500.0,0.0001378,2]
[331786744,1720763453624,-500.0,0.0001378,2]
[331786745,1720763453633,-500.0,0.0001378,2]
[331786746,1720763453643,-500.0,0.0001378,2]
[331786747,1720763453653,-500.0,0.0001378,2]
[331786748,1720763453662,-500.0,0.00013781,2]
[331786749,1720763453672,-624.38,0.00013781,2]
[331786750,1720763453682,-1078.89,0.00013781,2]
[331786751,1720763453691,-1007.41,0.00013781,2]
[331786752,1720763453701,-1521.57,0.00013781,2]
[331786753,1720763453710,-785.19,0.00013781,2]
[331786754,1720763453720,-606.59,0.00013781,2]
[331786755,1720763453729,-775.48,0.00013781,2]
[331786756,1720763453743,-1405.66,0.00013781,2]
[331786757,1720763453753,-1023.98,0.00013781,2]
[331786758,1720763453763,-1156.51,0.00013781,2]
[331786759,1720763453774,-500.0,0.00013781,2]
[331786760,1720763453786,-732.4,0.00013781,2]
[331786761,1720763453797,-1194.8,0.00013781,2]
[331786762,1720763453807,-500.0,0.00013781,2]
[331786763,1720763453819,-1196.06,0.00013781,2]
[331786764,1720763453831,-852.94,0.00013781,2]
[331786765,1720763453841,-853.05,0.00013781,2]
[331786766,1720763453850,-824.45,0.00013781,2]
[331786767,1720763453860,-611.74,0.00013781,2]
[331786768,1720763453873,-500.0,0.00013781,2]
[331786769,1720763453883,-526.61,0.00013781,2]
[331786770,1720763453892,-630.55,0.00013781,2]
[331786771,1720763453902,-635.73,0.00013781,2]
[331786772,1720763453911,-500.0,0.00013782,2]
[331786773,1720763453920,-500.0,0.00013782,2]
[331786774,1720763453929,-500.0,0.00013782,2]
[331786775,1720763453938,-1058.17,0.00013782,2]
[331786776,1720763453947,-500.0,0.00013782,2]
[331786777,1720763453956,-500.0,0.00013782,2]
[331786778,1720763453966,-337.21734642,0.00013782,2]
[331786779,1720763453975,-500.0,0.00013782,2]
[331786780,1720763453984,-500.0,0.00013782,2]
[331786781,1720763453993,-500.0,0.00013782,2]
[331786782,1720763454003,-500.0,0.00013782,2]
[331786783,1720763454011,-500.0,0.00013782,2]
[331786784,1720763454021,-289.70635056,0.00013782,2]
[331786785,1720763454030,-814.5,0.00013782,2]
[331786786,1720763454039,-500.0,0.00013782,2]
[331786787,1720763454048,-627.05,0.00013782,2]
[331786788,1720763454057,-500.0,0.00013782,2]
[331786789,1720763454067,-500.0,0.00013782,2]
[331786790,1720763454077,-500.0,0.00013782,2]
[331786791,1720763454086,-520.61,0.00013782,2]
[331786792,1720763454095,-500.0,0.00013782,2]
[331786793,1720763454104,-500.0,0.00013782,2]
[331786794,1720763454113,-500.0,0.00013782,2]
[331786795,1720763454123,-500.0,0.00013782,2]
[331786796,1720763454132,-500.0,0.00013782,2]
[331786797,1720763454141,-500.0,0.00013782,2]
[331786798,1720763454151,-500.0,0.00013782,2]
[331786799,1720763454160,-663.35,0.00013782,2]
[331786800,1720763454169,-500.0,0.00013782,2]
[331786801,1720763454178,-500.0,0.00013782,2]
[331786802,1720763454187,-500.0,0.00013782,2]
[331786803,1720763454197,-500.0,0.00013782,2]
[331786804,1720763454206,-500.0,0.00013782,2]
[331786805,1720763454215,-835.8,0.00013782,2]
[331786806,1720763454224,-500.0,0.00013782,2]
[331786807,1720763454233,-325.8,0.00013782,2]
[331786808,1720763454242,-500.0,0.00013782,2]
[331786809,1720763454251,-500.0,0.00013782,2]
[331786810,1720763454260,-531.07,0.00013782,2]
[331786811,1720763454269,-500.0,0.00013782,2]
[331786812,1720763454279,-500.0,0.00013782,2]
[331786813,1720763454287,-564.16,0.00013782,2]
[331786814,1720763454297,-500.0,0.00013782,2]
[331786815,1720763454306,-283.6,0.00013782,2]
[331786816,1720763454315,-532.71,0.00013782,2]
[331786817,1720763454324,-500.0,0.00013782,2]
[331786818,1720763454337,-500.0,0.00013782,2]
[331786819,1720763454347,-901.24,0.00013782,2]
[331786820,1720763454358,-500.0,0.00013782,2]
[331786821,1720763454368,-500.0,0.00013782,2]
[331786822,1720763454377,-544.01,0.00013782,2]
[331786823,1720763454387,-500.0,0.00013782,2]
[331786824,1720763454396,-511.99,0.00013782,2]
[331786825,1720763454406,-500.0,0.00013782,2]
[331786826,1720763454416,-500.0,0.00013782,2]
[331786827,1720763454425,-500.0,0.00013782,2]
[331786828,1720763454435,-594.03,0.00013782,2]
[331786829,1720763454444,-500.0,0.00013782,2]
[331786830,1720763454453,-500.0,0.00013782,2]
[331786831,1720763454463,-500.0,0.00013782,2]
[331786832,1720763454472,-500.0,0.00013782,2]
[331786833,1720763454482,-500.0,0.00013782,2]
[331786834,1720763454491,-500.0,0.00013782,2]
[331786835,1720763454500,-500.0,0.00013782,2]
[331786836,1720763454509,-233.6,0.00013782,2]
[331786837,1720763454518,-923.59,0.00013782,2]
[331786838,1720763454527,-500.0,0.00013782,2]
[331786839,1720763454537,-500.0,0.00013782,2]
[331786840,1720763454546,-500.0,0.00013782,2]
[331786841,1720763454555,-500.0,0.00013782,2]
[331786842,1720763454565,-500.0,0.00013782,2]
[331786843,1720763454575,-700.43,0.00013782,2]
[331786844,1720763454584,-500.0,0.00013782,2]
[331786845,1720763454593,-500.0,0.00013782,2]
[331786846,1720763454602,-500.0,0.00013782,2]
[331786847,1720763454611,-500.0,0.00013782,2]
[331786848,1720763454621,-500.0,0.00013782,2]
[331786849,1720763454630,-500.0,0.00013782,2]
[331786850,1720763454639,-234.88778469,0.00013782,2]
[331786851,1720763454649,-500.0,0.00013782,2]
[331786852,1720763454659,-500.0,0.00013782,2]
[331786853,1720763454669,-549.08,0.00013782,2]
[331786854,1720763454678,-500.0,0.00013782,2]
[331786855,1720763454688,-500.0,0.00013782,2]
[331786856,1720763454697,-500.0,0.00013782,2]
[331786857,1720763454706,-500.0,0.00013782,2]
[331786858,1720763454716,-482.85,0.00013782,2]
[331786859,1720763454726,-500.0,0.00013782,2]
[331786860,1720763454739,-500.0,0.00013782,2]
[331786861,1720763454749,-807.52,0.00013782,2]
[331786862,1720763454760,-500.0,0.00013782,2]
[331786863,1720763454771,-260.58,0.00013782,2]
[331786864,1720763454783,-636.35,0.00013782,2]
[331786865,1720763454792,-615.25,0.00013782,2]
[331786866,1720763454803,-539.71,0.00013782,2]
[331786867,1720763454814,-500.0,0.00013782,2]
[331786868,1720763454824,-605.89,0.00013782,2]
[331786869,1720763454833,-578.95,0.00013782,2]
[331786870,1720763454843,-606.89,0.00013782,2]
[331786871,1720763454852,-301.35765127,0.00013798,2]
[331786872,1720763454861,-872.68,0.00013808,2]
[331786873,1720763454871,-1623.81,0.00013808,2]
[331786874,1720763454881,-800.77,0.00013808,2]
[331786875,1720763454891,-500.0,0.00013808,2]
[331786876,1720763454902,-500.0,0.00013808,2]
[331786877,1720763454911,-500.0,0.00013808,2]
[331786878,1720763454921,-500.0,0.00013808,2]
[331786879,1720763454930,-643.02,0.00013808,2]
[331786880,1720763454940,-549.31,0.00013808,2]
[331786881,1720763454950,-500.0,0.00013808,2]
[331786882,1720763454960,-605.5,0.00013808,2]
[331786883,1720763454969,-500.0,0.00013808,2]
[331786884,1720763454979,-1333.67,0.00013808,2]
[331786885,1720763454988,-500.0,0.00013808,2]
[331786886,1720763454998,-860.57,0.00013808,2]
[331786887,1720763455008,-950.51,0.00013808,2]
[331786888,1720763455018,-500.0,0.00013808,2]
[331786889,1720763455028,-1482.38,0.00013808,2]
[331786890,1720763455038,-1224.36,0.00013808,2]
[331786891,1720763455047,-533.51,0.00013808,2]
[331786892,1720763455057,-1715.29,0.00013808,2]
[331786893,1720763455067,-528.27,0.00013808,2]
[331786894,1720763455077,-574.92,0.00013808,2]
[331786895,1720763455087,-500.0,0.00013808,2]
[331786896,1720763455096,-500.0,0.00013808,2]
[331786897,1720763455106,-500.0,0.00013808,2]
[331786898,1720763455116,-500.0,0.00013808,2]
[331786899,1720763455126,-500.0,0.00013808,2]
[331786900,1720763455135,-641.67,0.00013808,2]
[331786901,1720763455144,-531.70603776,0.00013808,2]
[331786902,1720763455153,-500.0,0.00013808,2]
[331786903,1720763455163,-500.0,0.00013808,2]
[331786904,1720763455172,-647.9,0.00013808,2]
[331786905,1720763455182,-500.0,0.00013808,2]
[331786906,1720763455191,-1007.13,0.00013808,2]
[331786907,1720763455201,-613.34,0.00013808,2]
[331786908,1720763455210,-500.0,0.00013808,2]
[331786909,1720763455220,-973.23,0.00013808,2]
[331786910,1720763455230,-676.24,0.00013808,2]
[331786911,1720763455239,-500.0,0.00013808,2]
[331786912,1720763455249,-1514.54,0.00013808,2]
[331786913,1720763455259,-595.87,0.00013808,2]
[331786914,1720763455268,-500.0,0.00013808,2]
[331786915,1720763455278,-500.0,0.00013808,2]
[331786916,1720763455287,-571.95,0.00013808,2]
[331786917,1720763455297,-500.0,0.00013808,2]
[331786918,1720763455306,-500.0,0.00013808,2]
[331786919,1720763455315,-242.64435046,0.00013808,2]
[331786920,1720763455325,-500.0,0.00013808,2]
[331786921,1720763455337,-500.0,0.00013808,2]
[331786922,1720763455347,-500.0,0.00013808,2]
[331786923,1720763455356,-500.0,0.00013808,2]
[331786924,1720763455365,-548.58,0.00013808,2]
[331786925,1720763455374,-664.98,0.00013808,2]
[331786926,1720763455384,-500.0,0.00013808,2]
[331786927,1720763455393,-500.0,0.00013808,2]
[331786928,1720763455403,-500.0,0.00013808,2]
[331786929,1720763455412,-1098.81,0.00013808,2]
[331786930,1720763455421,-500.0,0.00013808,2]
[331786931,1720763455430,-547.22,0.00013808,2]
[331786932,1720763455440,-566.86,0.00013808,2]
[331786933,1720763455449,-907.32,0.00013808,2]
[331786934,1720763455458,-761.45,0.00013808,2]
[331786935,1720763455467,-500.0,0.00013808,2]
[331786936,1720763455476,-500.0,0.00013808,2]
[331786937,1720763455485,-661.69,0.00013808,2]
[331786938,1720763455494,-1595.54,0.00013808,2]
[331786939,1720763455504,-864.13,0.00013808,2]
[331786940,1720763455513,-500.0,0.00013808,2]
[331786941,1720763455523,-500.0,0.00013808,2]
[331786942,1720763455532,-987.51,0.00013808,2]
[331786943,1720763455542,-500.0,0.00013808,2]
[331786944,1720763455550,-269.50294972,0.00013808,2]
[331786945,1720763455560,-500.0,0.00013808,2]
[331786946,1720763455569,-500.0,0.00013808,2]
[331786947,1720763455578,-512.14,0.00013808,2]
[331786948,1720763455587,-500.0,0.00013808,2]
[331786949,1720763455598,-735.82,0.00013808,2]
[331786950,1720763455607,-500.0,0.00013808,2]
[331786951,1720763455617,-500.0,0.00013808,2]
[331786952,1720763455626,-830.83,0.00013808,2]